[Event "Titled Tuesday Blitz February 21 Late 2023"]
[White "Martinez Alcantara, Jose Eduardo"]
[Black "Holt, Conrad"]
[WhiteFideId "3805662"]
[BlackFideId "2034387"]
[WhiteElo "2619"]
[BlackElo "2540"]
[Result "1/2-1/2"]
[Round "04"]
[TimeControl "180+2"]
[Date "2023.02.21"]
[WhiteClock "0:00:10"]
[BlackClock "0:00:08"]

1. e4 {[%clk 0:03:00]}  e6 {[%clk 0:03:00]} 2. d4 {[%clk 0:03:00]}  d5 {[%clk 0:03:00]} 3. Nd2 {[%clk 0:03:01]}  c5 {[%clk 0:03:00]} 4. Ngf3 {[%clk 0:02:59]}  cxd4 {[%clk 0:03:00]} 5. Nxd4 {[%clk 0:03:00]}  Nf6 {[%clk 0:03:00]} 6. exd5 {[%clk 0:03:00]}  Nxd5 {[%clk 0:03:00]} 7. c3 {[%clk 0:02:56]}  Be7 {[%clk 0:02:43]} 8. N2f3 {[%clk 0:02:56]}  O-O {[%clk 0:02:43]} 9. Bd3 {[%clk 0:02:56]}  Qc7 {[%clk 0:02:38]} 10. O-O {[%clk 0:02:36]}  Rd8 {[%clk 0:02:36]} 11. Qe2 {[%clk 0:02:34]}  Nf4 {[%clk 0:02:28]} 12. Bxf4 {[%clk 0:02:33]}  Qxf4 {[%clk 0:02:28]} 13. Rad1 {[%clk 0:02:34]}  Bd7 {[%clk 0:02:20]} 14. Be4 {[%clk 0:02:16]}  Qc7 {[%clk 0:02:12]} 15. Ne5 {[%clk 0:01:42]}  Be8 {[%clk 0:02:11]} 16. f4 {[%clk 0:01:40]}  Nc6 {[%clk 0:02:00]} 17. Ndxc6 {[%clk 0:01:32]}  bxc6 {[%clk 0:01:58]} 18. g3 {[%clk 0:01:28]}  Rab8 {[%clk 0:01:56]} 19. Kg2 {[%clk 0:01:28]}  c5 {[%clk 0:01:52]} 20. Rxd8 {[%clk 0:01:25]}  Bxd8 {[%clk 0:01:51]} 21. Rd1 {[%clk 0:01:23]}  Bf6 {[%clk 0:01:48]} 22. Nc4 {[%clk 0:01:18]}  Bb5 {[%clk 0:01:45]} 23. Rd2 {[%clk 0:01:17]}  g6 {[%clk 0:01:42]} 24. h4 {[%clk 0:01:15]}  h5 {[%clk 0:01:40]} 25. Kh3 {[%clk 0:01:05]}  Kg7 {[%clk 0:01:37]} 26. Bd3 {[%clk 0:01:03]}  Qc6 {[%clk 0:01:28]} 27. Kh2 {[%clk 0:00:59]}  Qa6 {[%clk 0:01:24]} 28. Ne5 {[%clk 0:00:44]}  Bxd3 {[%clk 0:01:08]} 29. Nxd3 {[%clk 0:00:45]}  Qxa2 {[%clk 0:00:39]} 30. Nxc5 {[%clk 0:00:43]}  Rd8 {[%clk 0:00:32]} 31. Nd7 {[%clk 0:00:22]}  Be7 {[%clk 0:00:32]} 32. Qe5+ {[%clk 0:00:17]}  Kg8 {[%clk 0:00:32]} 33. Qc7 {[%clk 0:00:17]}  Kg7 {[%clk 0:00:21]} 34. Re2 {[%clk 0:00:13]}  Qa6 {[%clk 0:00:18]} 35. Rg2 {[%clk 0:00:13]}  Qd6 {[%clk 0:00:11]} 36. Qxd6 {[%clk 0:00:11]}  Bxd6 {[%clk 0:00:12]} 37. Ne5 {[%clk 0:00:11]}  Bxe5 {[%clk 0:00:11]} 38. fxe5 {[%clk 0:00:12]}  Rd3 {[%clk 0:00:10]} 39. Re2 {[%clk 0:00:11]}  Kf8 {[%clk 0:00:11]} 40. Kg2 {[%clk 0:00:11]}  Ke7 {[%clk 0:00:11]} 41. Kf2 {[%clk 0:00:12]}  a5 {[%clk 0:00:11]} 42. Re3 {[%clk 0:00:13]}  Rd1 {[%clk 0:00:11]} 43. Kf3 {[%clk 0:00:10]}  Rb1 {[%clk 0:00:09]} 44. Re2 {[%clk 0:00:10]}  a4 {[%clk 0:00:09]} 45. Ke4 {[%clk 0:00:09]}  Rg1 {[%clk 0:00:09]} 46. Kf4 {[%clk 0:00:09]}  Rd1 {[%clk 0:00:09]} 47. Re4 {[%clk 0:00:08]}  Rd2 {[%clk 0:00:08]} 48. Rxa4 {[%clk 0:00:08]}  Rxb2 {[%clk 0:00:08]} 49. Ra7+ {[%clk 0:00:08]}  Kf8 {[%clk 0:00:07]} 50. Rc7 {[%clk 0:00:09]}  Rf2+ {[%clk 0:00:07]} 51. Ke3 {[%clk 0:00:09]}  Rg2 {[%clk 0:00:06]} 52. Kf3 {[%clk 0:00:09]}  Rc2 {[%clk 0:00:06]} 53. Rc8+ {[%clk 0:00:09]}  Ke7 {[%clk 0:00:06]} 54. Rc7+ {[%clk 0:00:10]}  Ke8 {[%clk 0:00:07]} 55. c4 {[%clk 0:00:10]}  Rc1 {[%clk 0:00:06]} 56. Kf2 {[%clk 0:00:09]}  Rc3 {[%clk 0:00:06]} 57. Rc5 {[%clk 0:00:06]}  Kd7 {[%clk 0:00:05]} 58. Kg2 {[%clk 0:00:06]}  Rc2+ {[%clk 0:00:05]} 59. Kf3 {[%clk 0:00:06]}  Rc3+ {[%clk 0:00:05]} 60. Kf4 {[%clk 0:00:07]}  Kd8 {[%clk 0:00:06]} 61. Rc6 {[%clk 0:00:06]}  Kd7 {[%clk 0:00:06]} 62. Rd6+ {[%clk 0:00:06]}  Ke7 {[%clk 0:00:05]} 63. Rd4 {[%clk 0:00:07]}  Rc1 {[%clk 0:00:05]} 64. Ke4 {[%clk 0:00:07]}  Rf1 {[%clk 0:00:05]} 65. Rd3 {[%clk 0:00:06]}  Re1+ {[%clk 0:00:05]} 66. Re3 {[%clk 0:00:07]}  Rd1 {[%clk 0:00:05]} 67. Ra3 {[%clk 0:00:05]}  Re1+ {[%clk 0:00:05]} 68. Kd4 {[%clk 0:00:06]}  Rd1+ {[%clk 0:00:05]} 69. Kc5 {[%clk 0:00:07]}  Re1 {[%clk 0:00:05]} 70. Ra7+ {[%clk 0:00:07]}  Ke8 {[%clk 0:00:05]} 71. Kc6 {[%clk 0:00:07]}  Rxe5 {[%clk 0:00:04]} 72. Kd6 {[%clk 0:00:07]}  f6 {[%clk 0:00:04]} 73. c5 {[%clk 0:00:04]}  Re1 {[%clk 0:00:01]} 74. c6 {[%clk 0:00:05]}  Rd1+ {[%clk 0:00:01]} 75. Kxe6 {[%clk 0:00:05]}  Kd8 {[%clk 0:00:02]} 76. Rd7+ {[%clk 0:00:03]}  Rxd7 {[%clk 0:00:02]} 77. cxd7 {[%clk 0:00:04]}  g5 {[%clk 0:00:03]} 78. Kxf6 {[%clk 0:00:04]}  gxh4 {[%clk 0:00:03]} 79. gxh4 {[%clk 0:00:05]}  Kxd7 {[%clk 0:00:04]} 80. Kg6 {[%clk 0:00:05]}  Ke7 {[%clk 0:00:04]} 81. Kxh5 {[%clk 0:00:06]}  Kf7 {[%clk 0:00:05]} 82. Kh6 {[%clk 0:00:07]}  Kg8 {[%clk 0:00:05]} 83. Kg6 {[%clk 0:00:08]}  Kh8 {[%clk 0:00:06]} 84. h5 {[%clk 0:00:09]}  Kg8 {[%clk 0:00:07]} 85. h6 {[%clk 0:00:10]}  Kh8 {[%clk 0:00:08]} 86. h7 {[%clk 0:00:10]} 1/2-1/2


[Site "https://www.chess.com"]

[Event "Titled Tuesday Blitz February 21 Late 2023"]
[White "Gholami Orimi, Mahdi"]
[Black "Martinez Ramirez, Lennis"]
[WhiteFideId "12558486"]
[BlackFideId "3509079"]
[WhiteElo "2420"]
[BlackElo "2426"]
[Result "1/2-1/2"]
[Round "04"]
[TimeControl "180+2"]
[Date "2023.02.21"]
[WhiteClock "0:00:06"]
[BlackClock "0:00:05"]

1. d4 {[%clk 0:02:56]}  d5 {[%clk 0:02:59]} 2. c4 {[%clk 0:02:56]}  dxc4 {[%clk 0:03:00]} 3. e3 {[%clk 0:02:53]}  Nf6 {[%clk 0:03:00]} 4. Bxc4 {[%clk 0:02:53]}  e6 {[%clk 0:03:00]} 5. Nf3 {[%clk 0:02:54]}  c5 {[%clk 0:03:01]} 6. O-O {[%clk 0:02:50]}  a6 {[%clk 0:03:01]} 7. a4 {[%clk 0:02:42]}  Nc6 {[%clk 0:02:52]} 8. Nc3 {[%clk 0:02:40]}  cxd4 {[%clk 0:02:47]} 9. exd4 {[%clk 0:02:41]}  Nb4 {[%clk 0:02:46]} 10. Qb3 {[%clk 0:02:30]}  Be7 {[%clk 0:02:42]} 11. Bg5 {[%clk 0:02:28]}  Nc6 {[%clk 0:02:08]} 12. Bxf6 {[%clk 0:01:48]}  Bxf6 {[%clk 0:02:07]} 13. d5 {[%clk 0:01:48]}  Na5 {[%clk 0:02:06]} 14. Qa2 {[%clk 0:01:47]}  Nxc4 {[%clk 0:02:01]} 15. Qxc4 {[%clk 0:01:47]}  O-O {[%clk 0:01:59]} 16. Rfd1 {[%clk 0:01:42]}  Bxc3 {[%clk 0:01:55]} 17. dxe6 {[%clk 0:01:32]}  Bxe6 {[%clk 0:01:48]} 18. Qxc3 {[%clk 0:01:30]}  Qf6 {[%clk 0:01:42]} 19. Qxf6 {[%clk 0:01:24]}  gxf6 {[%clk 0:01:43]} 20. Rd6 {[%clk 0:01:25]}  Rfd8 {[%clk 0:01:43]} 21. Rad1 {[%clk 0:01:23]}  Rxd6 {[%clk 0:01:40]} 22. Rxd6 {[%clk 0:01:24]}  Rc8 {[%clk 0:01:35]} 23. h3 {[%clk 0:01:23]}  Rc4 {[%clk 0:01:28]} 24. Rd4 {[%clk 0:00:44]}  Rc1+ {[%clk 0:01:15]} 25. Kh2 {[%clk 0:00:43]}  Rc2 {[%clk 0:01:15]} 26. Rd2 {[%clk 0:00:41]}  Rxd2 {[%clk 0:00:51]} 27. Nxd2 {[%clk 0:00:41]}  Kf8 {[%clk 0:00:52]} 28. b4 {[%clk 0:00:21]}  Ke7 {[%clk 0:00:52]} 29. Ne4 {[%clk 0:00:17]}  Bd5 {[%clk 0:00:48]} 30. Nc3 {[%clk 0:00:17]}  Bc4 {[%clk 0:00:43]} 31. Kg3 {[%clk 0:00:16]}  Kd6 {[%clk 0:00:32]} 32. f4 {[%clk 0:00:13]}  f5 {[%clk 0:00:21]} 33. a5 {[%clk 0:00:13]}  Bf1 {[%clk 0:00:11]} 34. Kf2 {[%clk 0:00:12]}  Bc4 {[%clk 0:00:11]} 35. g3 {[%clk 0:00:12]}  h5 {[%clk 0:00:10]} 36. h4 {[%clk 0:00:11]}  Kc6 {[%clk 0:00:09]} 37. Ke3 {[%clk 0:00:12]}  f6 {[%clk 0:00:09]} 38. Kd4 {[%clk 0:00:12]}  Bf1 {[%clk 0:00:08]} 39. Nd5 {[%clk 0:00:12]}  Kb5 {[%clk 0:00:09]} 40. Kc3 {[%clk 0:00:12]}  Be2 {[%clk 0:00:05]} 41. Nxf6 {[%clk 0:00:12]}  Kc6 {[%clk 0:00:05]} 42. Kd4 {[%clk 0:00:12]}  Kb5 {[%clk 0:00:05]} 43. Kc3 {[%clk 0:00:10]}  Kc6 {[%clk 0:00:06]} 44. Nh7 {[%clk 0:00:07]}  Kd5 {[%clk 0:00:06]} 45. Nf6+ {[%clk 0:00:06]}  Kc6 {[%clk 0:00:05]} 1/2-1/2


[Site "https://www.chess.com"]

[Event "Titled Tuesday Blitz February 21 Late 2023"]
[White "Ehlvest, Jaan"]
[Black "Rustemov, Alexander"]
[WhiteFideId "4500016"]
[BlackFideId "4119002"]
[WhiteElo "2530"]
[BlackElo "2525"]
[Result "0-1"]
[Round "04"]
[TimeControl "180+2"]
[Date "2023.02.21"]
[WhiteClock "0:00:02"]
[BlackClock "0:00:15"]

1. e4 {[%clk 0:03:00]}  e6 {[%clk 0:03:00]} 2. d4 {[%clk 0:02:56]}  d5 {[%clk 0:03:01]} 3. Nc3 {[%clk 0:02:54]}  dxe4 {[%clk 0:02:59]} 4. Nxe4 {[%clk 0:02:52]}  Bd7 {[%clk 0:03:00]} 5. Nf3 {[%clk 0:02:47]}  Bc6 {[%clk 0:03:00]} 6. Bd3 {[%clk 0:02:44]}  Nd7 {[%clk 0:03:01]} 7. O-O {[%clk 0:02:41]}  Ngf6 {[%clk 0:03:02]} 8. Ned2 {[%clk 0:02:41]}  Be7 {[%clk 0:03:02]} 9. c4 {[%clk 0:02:39]}  O-O {[%clk 0:03:02]} 10. b3 {[%clk 0:02:39]}  b6 {[%clk 0:03:02]} 11. Bb2 {[%clk 0:02:38]}  Bb7 {[%clk 0:03:03]} 12. Re1 {[%clk 0:02:38]}  c5 {[%clk 0:03:03]} 13. Bc2 {[%clk 0:02:28]}  Re8 {[%clk 0:03:01]} 14. Qe2 {[%clk 0:02:26]}  Qc7 {[%clk 0:03:00]} 15. Rad1 {[%clk 0:02:24]}  Rad8 {[%clk 0:03:00]} 16. dxc5 {[%clk 0:02:13]}  bxc5 {[%clk 0:02:51]} 17. h3 {[%clk 0:02:04]}  h6 {[%clk 0:02:48]} 18. Nf1 {[%clk 0:01:56]}  Nb8 {[%clk 0:02:37]} 19. Ng3 {[%clk 0:01:45]}  Nc6 {[%clk 0:02:35]} 20. Ne4 {[%clk 0:01:39]}  Nd7 {[%clk 0:02:21]} 21. Qe3 {[%clk 0:01:34]}  Nf8 {[%clk 0:02:07]} 22. Qc3 {[%clk 0:01:29]}  f6 {[%clk 0:02:05]} 23. Qe3 {[%clk 0:01:29]}  Rxd1 {[%clk 0:01:57]} 24. Rxd1 {[%clk 0:01:29]}  Nb4 {[%clk 0:01:50]} 25. Bb1 {[%clk 0:01:26]}  Rd8 {[%clk 0:01:39]} 26. Rxd8 {[%clk 0:01:23]}  Qxd8 {[%clk 0:01:39]} 27. Qe2 {[%clk 0:01:19]}  Nc6 {[%clk 0:01:36]} 28. Bc2 {[%clk 0:01:05]}  e5 {[%clk 0:01:35]} 29. Ng3 {[%clk 0:00:47]}  Nd4 {[%clk 0:01:32]} 30. Bxd4 {[%clk 0:00:46]}  cxd4 {[%clk 0:01:30]} 31. Nf5 {[%clk 0:00:44]}  Bc5 {[%clk 0:01:26]} 32. h4 {[%clk 0:00:42]}  Ne6 {[%clk 0:01:21]} 33. g3 {[%clk 0:00:42]}  Qd7 {[%clk 0:01:19]} 34. h5 {[%clk 0:00:39]}  Qc6 {[%clk 0:01:18]} 35. N5h4 {[%clk 0:00:34]}  Ng5 {[%clk 0:01:16]} 36. Bd1 {[%clk 0:00:29]}  e4 {[%clk 0:01:10]} 37. Nxg5 {[%clk 0:00:24]}  hxg5 {[%clk 0:01:09]} 38. Nf5 {[%clk 0:00:25]}  Qe6 {[%clk 0:00:52]} 39. Qg4 {[%clk 0:00:24]}  Kf8 {[%clk 0:00:48]} 40. b4 {[%clk 0:00:13]}  Bc8 {[%clk 0:00:42]} 41. bxc5 {[%clk 0:00:08]}  Qxf5 {[%clk 0:00:42]} 42. Qe2 {[%clk 0:00:07]}  Qe5 {[%clk 0:00:36]} 43. c6 {[%clk 0:00:05]}  f5 {[%clk 0:00:34]} 44. Bb3 {[%clk 0:00:04]}  Qc5 {[%clk 0:00:28]} 45. h6 {[%clk 0:00:04]}  gxh6 {[%clk 0:00:27]} 46. Qh5 {[%clk 0:00:04]}  Qxc6 {[%clk 0:00:16]} 47. c5 {[%clk 0:00:04]}  Qf6 {[%clk 0:00:16]} 48. c6 {[%clk 0:00:02]}  d3 {[%clk 0:00:16]} 49. c7 {[%clk 0:00:02]}  f4 {[%clk 0:00:15]} 0-1


[Site "https://www.chess.com"]

[Event "Titled Tuesday Blitz February 21 Late 2023"]
[White "Vachier-Lagrave, Maxime"]
[Black "Kobo, Ori"]
[WhiteFideId "623539"]
[BlackFideId "2812320"]
[WhiteElo "2742"]
[BlackElo "2559"]
[Result "1-0"]
[Round "04"]
[TimeControl "180+2"]
[Date "2023.02.21"]
[WhiteClock "0:00:08"]
[BlackClock "0:00:01"]

1. e4 {[%clk 0:03:00]}  g6 {[%clk 0:03:00]} 2. d4 {[%clk 0:02:59]}  Bg7 {[%clk 0:03:00]} 3. Nc3 {[%clk 0:02:57]}  d6 {[%clk 0:03:01]} 4. Be3 {[%clk 0:02:57]}  a6 {[%clk 0:03:01]} 5. h4 {[%clk 0:02:53]}  h6 {[%clk 0:02:57]} 6. Qd2 {[%clk 0:02:44]}  b5 {[%clk 0:02:56]} 7. f3 {[%clk 0:02:44]}  Bb7 {[%clk 0:02:55]} 8. Nge2 {[%clk 0:02:39]}  Nd7 {[%clk 0:02:51]} 9. O-O-O {[%clk 0:02:32]}  Ngf6 {[%clk 0:02:45]} 10. g4 {[%clk 0:02:26]}  Nb6 {[%clk 0:02:45]} 11. Ng3 {[%clk 0:02:23]}  h5 {[%clk 0:02:45]} 12. g5 {[%clk 0:02:22]}  Nfd7 {[%clk 0:02:45]} 13. Kb1 {[%clk 0:01:53]}  c5 {[%clk 0:02:38]} 14. Qf2 {[%clk 0:01:43]}  b4 {[%clk 0:02:23]} 15. Nce2 {[%clk 0:01:42]}  Nc4 {[%clk 0:02:09]} 16. Bc1 {[%clk 0:01:42]}  Qc7 {[%clk 0:01:59]} 17. Bh3 {[%clk 0:01:29]}  Ndb6 {[%clk 0:01:45]} 18. Rhe1 {[%clk 0:01:24]}  O-O {[%clk 0:01:36]} 19. f4 {[%clk 0:01:16]}  cxd4 {[%clk 0:01:24]} 20. Nxd4 {[%clk 0:01:17]}  Qc5 {[%clk 0:01:21]} 21. Re2 {[%clk 0:01:13]}  Na4 {[%clk 0:01:03]} 22. Rd3 {[%clk 0:01:12]}  a5 {[%clk 0:01:00]} 23. Ne6 {[%clk 0:00:48]}  fxe6 {[%clk 0:00:51]} 24. Bxe6+ {[%clk 0:00:47]}  Kh7 {[%clk 0:00:52]} 25. Qxc5 {[%clk 0:00:48]}  Nxc5 {[%clk 0:00:52]} 26. Bxc4 {[%clk 0:00:48]}  Nxd3 {[%clk 0:00:52]} 27. cxd3 {[%clk 0:00:44]}  Ba6 {[%clk 0:00:51]} 28. b3 {[%clk 0:00:44]}  a4 {[%clk 0:00:40]} 29. Kc2 {[%clk 0:00:24]}  Bxc4 {[%clk 0:00:31]} 30. dxc4 {[%clk 0:00:18]}  Ra6 {[%clk 0:00:25]} 31. Nf1 {[%clk 0:00:09]}  Bd4 {[%clk 0:00:21]} 32. f5 {[%clk 0:00:05]}  gxf5 {[%clk 0:00:18]} 33. exf5 {[%clk 0:00:06]}  Rxf5 {[%clk 0:00:18]} 34. Rxe7+ {[%clk 0:00:06]}  Kg8 {[%clk 0:00:19]} 35. Ng3 {[%clk 0:00:07]}  axb3+ {[%clk 0:00:13]} 36. axb3 {[%clk 0:00:07]}  Rf3 {[%clk 0:00:09]} 37. Nxh5 {[%clk 0:00:01]}  Ra2+ {[%clk 0:00:09]} 38. Kb1 {[%clk 0:00:02]}  Ra1+ {[%clk 0:00:09]} 39. Kc2 {[%clk 0:00:03]}  Ra2+ {[%clk 0:00:08]} 40. Kb1 {[%clk 0:00:03]}  Ra1+ {[%clk 0:00:08]} 41. Kc2 {[%clk 0:00:04]}  Rc3+ {[%clk 0:00:08]} 42. Kd2 {[%clk 0:00:05]}  Raxc1 {[%clk 0:00:07]} 43. g6 {[%clk 0:00:05]}  R1c2+ {[%clk 0:00:06]} 44. Kd1 {[%clk 0:00:06]}  Rc1+ {[%clk 0:00:04]} 45. Kd2 {[%clk 0:00:06]}  R1c2+ {[%clk 0:00:03]} 46. Kd1 {[%clk 0:00:07]}  Rf2 {[%clk 0:00:02]} 47. Re4 {[%clk 0:00:07]}  Rf1+ {[%clk 0:00:02]} 48. Ke2 {[%clk 0:00:07]}  Rf2+ {[%clk 0:00:02]} 49. Kd1 {[%clk 0:00:08]}  Rd3+ {[%clk 0:00:02]} 50. Ke1 {[%clk 0:00:08]}  Rf5 {[%clk 0:00:01]} 51. Ke2 {[%clk 0:00:08]} 1-0


[Site "https://www.chess.com"]

[Event "Titled Tuesday Blitz February 21 Late 2023"]
[White "Sarana, Alexey"]
[Black "The_Sherman_Variation"]
[WhiteFideId "24133795"]
[WhiteElo "2685"]
[BlackElo "2501"]
[Result "1-0"]
[Round "04"]
[TimeControl "180+2"]
[Date "2023.02.21"]
[WhiteClock "0:01:19"]
[BlackClock "0:00:16"]

1. d4 {[%clk 0:03:00]}  Nf6 {[%clk 0:02:58]} 2. c4 {[%clk 0:03:00]}  c5 {[%clk 0:02:57]} 3. d5 {[%clk 0:03:00]}  b5 {[%clk 0:02:57]} 4. cxb5 {[%clk 0:03:00]}  e6 {[%clk 0:02:57]} 5. Nc3 {[%clk 0:02:59]}  exd5 {[%clk 0:02:57]} 6. Nxd5 {[%clk 0:03:00]}  Bb7 {[%clk 0:02:58]} 7. Nxf6+ {[%clk 0:02:54]}  Qxf6 {[%clk 0:02:59]} 8. Nf3 {[%clk 0:02:54]}  Be7 {[%clk 0:02:59]} 9. Bg5 {[%clk 0:02:47]}  Qxb2 {[%clk 0:02:58]} 10. Bxe7 {[%clk 0:02:47]}  Bxf3 {[%clk 0:02:58]} 11. Bg5 {[%clk 0:02:36]}  Bb7 {[%clk 0:02:48]} 12. Qc1 {[%clk 0:02:29]}  Qe5 {[%clk 0:02:30]} 13. Bf4 {[%clk 0:02:24]}  Qd4 {[%clk 0:02:15]} 14. e3 {[%clk 0:02:05]}  Qb4+ {[%clk 0:02:14]} 15. Qd2 {[%clk 0:02:06]}  Qxd2+ {[%clk 0:02:15]} 16. Kxd2 {[%clk 0:02:07]}  O-O {[%clk 0:02:08]} 17. Bd6 {[%clk 0:02:05]}  Rc8 {[%clk 0:02:05]} 18. Rc1 {[%clk 0:02:05]}  a6 {[%clk 0:02:05]} 19. b6 {[%clk 0:02:05]}  a5 {[%clk 0:01:56]} 20. Rxc5 {[%clk 0:02:00]}  Rxc5 {[%clk 0:01:52]} 21. Bxc5 {[%clk 0:02:01]}  Na6 {[%clk 0:01:52]} 22. Bd4 {[%clk 0:02:01]}  Rc8 {[%clk 0:01:47]} 23. Bb5 {[%clk 0:01:50]}  Nb4 {[%clk 0:01:44]} 24. Rc1 {[%clk 0:01:49]}  Rxc1 {[%clk 0:01:17]} 25. Kxc1 {[%clk 0:01:50]}  Nxa2+ {[%clk 0:01:17]} 26. Kb2 {[%clk 0:01:50]}  Nb4 {[%clk 0:01:15]} 27. f3 {[%clk 0:01:47]}  d6 {[%clk 0:01:11]} 28. Kb3 {[%clk 0:01:46]}  Nc6 {[%clk 0:00:53]} 29. Bc3 {[%clk 0:01:45]}  g5 {[%clk 0:00:49]} 30. Ka4 {[%clk 0:01:43]}  Kf8 {[%clk 0:00:45]} 31. Bxa5 {[%clk 0:01:42]}  Ke7 {[%clk 0:00:41]} 32. Bc3 {[%clk 0:01:42]}  Ke6 {[%clk 0:00:36]} 33. Bd3 {[%clk 0:01:41]}  h6 {[%clk 0:00:34]} 34. Kb5 {[%clk 0:01:36]}  Nb8 {[%clk 0:00:31]} 35. Be4 {[%clk 0:01:31]}  d5 {[%clk 0:00:27]} 36. Bc2 {[%clk 0:01:29]}  Ba6+ {[%clk 0:00:26]} 37. Ka5 {[%clk 0:01:27]}  Kd6 {[%clk 0:00:22]} 38. f4 {[%clk 0:01:19]}  gxf4 {[%clk 0:00:20]} 39. exf4 {[%clk 0:01:20]}  Bf1 {[%clk 0:00:19]} 40. Be5+ {[%clk 0:01:20]}  Kc6 {[%clk 0:00:18]} 41. Bxb8 {[%clk 0:01:18]}  Bxg2 {[%clk 0:00:16]} 42. Be5 {[%clk 0:01:19]}  Kb7 {[%clk 0:00:16]} 43. Bd3 {[%clk 0:01:19]}  h5 {[%clk 0:00:16]} 44. Ba6+ {[%clk 0:01:19]} 1-0


[Site "https://www.chess.com"]

[Event "Titled Tuesday Blitz February 21 Late 2023"]
[White "Urazayev, Arystanbek"]
[Black "Djokic, Mihailo"]
[WhiteFideId "13709810"]
[BlackFideId "976440"]
[WhiteElo "2460"]
[BlackElo "2192"]
[Result "1-0"]
[Round "04"]
[TimeControl "180+2"]
[Date "2023.02.21"]
[WhiteClock "0:01:12"]
[BlackClock "0:00:02"]

1. d4 {[%clk 0:03:00]}  d5 {[%clk 0:03:00]} 2. c4 {[%clk 0:03:00]}  e6 {[%clk 0:03:00]} 3. Nf3 {[%clk 0:03:00]}  Nf6 {[%clk 0:03:00]} 4. Nc3 {[%clk 0:03:01]}  Be7 {[%clk 0:03:00]} 5. Bf4 {[%clk 0:03:00]}  O-O {[%clk 0:02:58]} 6. a3 {[%clk 0:03:00]}  c6 {[%clk 0:02:56]} 7. e3 {[%clk 0:02:57]}  Nbd7 {[%clk 0:02:52]} 8. Rc1 {[%clk 0:02:56]}  h6 {[%clk 0:02:48]} 9. Bd3 {[%clk 0:02:52]}  dxc4 {[%clk 0:02:48]} 10. Bxc4 {[%clk 0:02:52]}  b5 {[%clk 0:02:44]} 11. Bd3 {[%clk 0:02:52]}  Bb7 {[%clk 0:02:45]} 12. O-O {[%clk 0:02:49]}  a6 {[%clk 0:02:45]} 13. Ne4 {[%clk 0:02:46]}  Nxe4 {[%clk 0:02:43]} 14. Bxe4 {[%clk 0:02:46]}  Nf6 {[%clk 0:02:44]} 15. Bxc6 {[%clk 0:02:45]}  Bxc6 {[%clk 0:02:44]} 16. Rxc6 {[%clk 0:02:45]}  Qd5 {[%clk 0:02:43]} 17. Qc2 {[%clk 0:02:42]}  Rfd8 {[%clk 0:02:31]} 18. Rc1 {[%clk 0:02:41]}  a5 {[%clk 0:02:24]} 19. h3 {[%clk 0:02:40]}  b4 {[%clk 0:02:22]} 20. a4 {[%clk 0:02:40]}  Ne4 {[%clk 0:02:19]} 21. Ne5 {[%clk 0:02:31]}  Bf6 {[%clk 0:02:12]} 22. Nd3 {[%clk 0:02:27]}  Qf5 {[%clk 0:01:28]} 23. Nc5 {[%clk 0:02:20]}  Ng5 {[%clk 0:00:30]} 24. Qxf5 {[%clk 0:02:17]}  exf5 {[%clk 0:00:30]} 25. Nb7 {[%clk 0:01:46]}  Rd7 {[%clk 0:00:22]} 26. Rc8+ {[%clk 0:01:45]}  Rxc8 {[%clk 0:00:22]} 27. Rxc8+ {[%clk 0:01:46]}  Kh7 {[%clk 0:00:23]} 28. Nc5 {[%clk 0:01:39]}  Rd5 {[%clk 0:00:19]} 29. Bxg5 {[%clk 0:01:32]}  hxg5 {[%clk 0:00:19]} 30. Kf1 {[%clk 0:01:29]}  g4 {[%clk 0:00:10]} 31. hxg4 {[%clk 0:01:28]}  fxg4 {[%clk 0:00:10]} 32. g3 {[%clk 0:01:29]}  Bxd4 {[%clk 0:00:03]} 33. exd4 {[%clk 0:01:28]}  Rxd4 {[%clk 0:00:04]} 34. Ke2 {[%clk 0:01:14]}  Rc4 {[%clk 0:00:04]} 35. Kd3 {[%clk 0:01:15]}  Rc1 {[%clk 0:00:04]} 36. Rc7 {[%clk 0:01:15]}  Kg6 {[%clk 0:00:03]} 37. Ne6 {[%clk 0:01:14]}  Rd1+ {[%clk 0:00:01]} 38. Ke2 {[%clk 0:01:14]}  Rb1 {[%clk 0:00:02]} 39. Nf4+ {[%clk 0:01:14]}  Kf6 {[%clk 0:00:03]} 40. Nd3 {[%clk 0:01:15]}  g6 {[%clk 0:00:01]} 41. Rc5 {[%clk 0:01:15]}  Ra1 {[%clk 0:00:02]} 42. Rxa5 {[%clk 0:01:15]}  b3 {[%clk 0:00:02]} 43. Kd2 {[%clk 0:01:12]}  Ra2 {[%clk 0:00:01]} 44. Kc3 {[%clk 0:01:12]}  Ra1 {[%clk 0:00:02]} 45. Kxb3 {[%clk 0:01:12]}  Rd1 {[%clk 0:00:02]} 46. Kc3 {[%clk 0:01:12]} 1-0


[Site "https://www.chess.com"]

[Event "Titled Tuesday Blitz February 21 Late 2023"]
[White "Pichot, Alan"]
[Black "Melian, Juan Sebastian"]
[WhiteFideId "110973"]
[BlackFideId "3706575"]
[WhiteElo "2638"]
[BlackElo "2293"]
[Result "1-0"]
[Round "04"]
[TimeControl "180+2"]
[Date "2023.02.21"]
[WhiteClock "0:01:50"]
[BlackClock "0:00:07"]

1. d4 {[%clk 0:02:55]}  Nf6 {[%clk 0:02:58]} 2. c4 {[%clk 0:02:54]}  e6 {[%clk 0:02:56]} 3. Nf3 {[%clk 0:02:55]}  Bb4+ {[%clk 0:02:53]} 4. Bd2 {[%clk 0:02:55]}  a5 {[%clk 0:02:53]} 5. a3 {[%clk 0:02:55]}  Bxd2+ {[%clk 0:02:51]} 6. Qxd2 {[%clk 0:02:56]}  O-O {[%clk 0:02:51]} 7. Nc3 {[%clk 0:02:56]}  d6 {[%clk 0:02:51]} 8. e3 {[%clk 0:02:53]}  Qe7 {[%clk 0:02:51]} 9. Be2 {[%clk 0:02:51]}  e5 {[%clk 0:02:50]} 10. O-O {[%clk 0:02:51]}  Re8 {[%clk 0:02:50]} 11. b4 {[%clk 0:02:50]}  axb4 {[%clk 0:02:47]} 12. axb4 {[%clk 0:02:50]}  Rxa1 {[%clk 0:02:48]} 13. Rxa1 {[%clk 0:02:50]}  Bg4 {[%clk 0:02:49]} 14. h3 {[%clk 0:02:47]}  Bh5 {[%clk 0:02:47]} 15. Ra7 {[%clk 0:02:43]}  c6 {[%clk 0:02:26]} 16. dxe5 {[%clk 0:02:38]}  dxe5 {[%clk 0:02:26]} 17. c5 {[%clk 0:02:38]}  Rd8 {[%clk 0:02:15]} 18. Rxb7 {[%clk 0:02:29]}  Rxd2 {[%clk 0:01:58]} 19. Rxe7 {[%clk 0:02:28]}  Rc2 {[%clk 0:01:58]} 20. g4 {[%clk 0:01:51]}  Bg6 {[%clk 0:00:56]} 21. Nxe5 {[%clk 0:01:50]}  Rxc3 {[%clk 0:00:49]} 22. g5 {[%clk 0:01:50]}  Kf8 {[%clk 0:00:09]} 23. gxf6 {[%clk 0:01:49]}  gxf6 {[%clk 0:00:10]} 24. Nxg6+ {[%clk 0:01:49]}  hxg6 {[%clk 0:00:07]} 25. Rb7 {[%clk 0:01:50]} 1-0


[Site "https://www.chess.com"]